Cogmind - Beta 12 @@@ ROGUE MODE // 2023.06.06 @ 03:41:57 Player: snowphil Result: Destroyed by B-75 Beast with Heavy Machine Gun Performance ------------- Evolutions (4) 2000 Regions Visited (14) 2800 Robots Destroyed (88) 440 Value Destroyed (2485) 2485 Prototype IDs (14) 280 Alien Tech Used (0) 0 Bonus (919) 919 TOTAL SCORE: 8924 Bonus ------- High Alert Combat Kills 2 Follower Combat Kills 417 Entered DSFs 500 Cogmind --------- Core Integrity 0/850 Matter 23/300 Energy 100/100 System Corruption 0% Temperature Cool (0) Movement Core (50) Location -6/Factory Parts ------- > --- POWER (1) -------- (None) > --- PROPULSION (6) --- (None) > --- UTILITY (6) ------ System Guard System Guard System Guard > --- WEAPON (2) ------- (None) > --- INVENTORY (5) ---- Damper Plating Drone Bay (2/2) Peak State ------------ > --- POWER ------------ Light Nuclear Core > --- PROPULSION ------- Carbon-fiber Leg Carbon-fiber Leg Carbon-fiber Leg Carbon-fiber Leg Gravmag System > --- UTILITY ---------- Large Storage Unit Active Sensor Suite Powered Armor Improved System Shield > --- WEAPON ----------- Mini Assault Cannon Mini Assault Cannon > --- INVENTORY -------- Light Nuclear Core Gravmag System Gravmag System Improved Cooling System Improved Sensor Array Improved Propulsion Shielding Damper Plating Graphene Brace Tesla Rifle Plasma Cannon Mini Assault Cannon Power Maul [Rating: 73] Favorites ----------- Power Light Ion Engine Engine Light Ion Engine Power Core Light Nuclear Core Propulsion Carbon-fiber Leg Treads Armored Treads Leg Carbon-fiber Leg Hover Unit Gravmag System Flight Unit Flight Unit Utility Small Storage Unit Device Experimental Sensor Array Storage Small Storage Unit Processor Advanced Terrain Scan Processor Hackware Hacking Suite Protection Hardened Light Armor Plating Weapon Maul Energy Gun Tesla Rifle Energy Cannon Plasma Cannon Ballistic Gun Light Assault Rifle Ballistic Cannon Mini Assault Cannon Launcher Mini Grenade Launcher Impact Weapon Maul Special Melee Weapon Datajack Build | -11 -10 -10 -9 -9 -9 -8 -8 -7 -7 -7 -7 -6 -6 -6 ------- Run | Jun Mat Min Mat Min Exi Min Mat Fac Was Fac DSF Fac Was Fac Slots Evolved 8 | . . . 2 . . . 2 2 . . . 2 . . Power . | . . . . . . . . . . . . . . . Propulsion 4 | . . . 2 . . . 1 1 . . . . . . Utility 4 | . . . . . . . 1 1 . . . 2 . . Weapon . | . . . . . . . . . . . . . . . Parts Attached 232 | . 23 35 33 5 1 25 22 56 3 . 1 8 . 20 Power 18 | . 2 4 4 . . . 2 3 1 . . . . 2 Engine 14 | . 2 4 4 . . . 1 2 . . . . . 1 Core 4 | . . . . . . . 1 1 1 . . . . 1 Reactor . | . . . . . . . . . . . . . . . Propulsion 72 | . 10 7 8 . . 12 9 17 1 . . 3 . 5 Treads 4 | . 1 1 . . . . 1 . 1 . . . . . Leg 30 | . 3 4 . . . 7 5 6 . . . 3 . 2 Wheel . | . . . . . . . . . . . . . . . Hover 22 | . 6 2 . . . . . 11 . . . . . 3 Flight 16 | . . . 8 . . 5 3 . . . . . . . Utility 67 | . 2 14 5 3 1 6 6 20 . . 1 2 . 7 Device 39 | . 1 7 4 3 . 2 2 16 . . 1 1 . 2 Storage 3 | . . 1 . . 1 . 1 . . . . . . . Processor 5 | . . 1 . . . . . 1 . . . . . 3 Hackware 2 | . . . . . . . 1 . . . . 1 . . Protection 18 | . 1 5 1 . . 4 2 3 . . . . . 2 Artifact . | . . . . . . . . . . . . . . . Weapon 75 | . 9 10 16 2 . 7 5 16 1 . . 3 . 6 Energy Gun 25 | . 4 5 2 . . 3 3 4 1 . . 2 . 1 Energy Cannon 4 | . . . . 1 . . . 2 . . . . . 1 Ballistic Gun 13 | . 2 3 7 . . 1 . . . . . . . . Ballistic Cannon 12 | . 1 1 . . . . . 6 . . . 1 . 3 Launcher 9 | . . . 5 1 . 2 1 . . . . . . . Special Weapon . | . . . . . . . . . . . . . . . Impact Weapon 11 | . 1 1 2 . . 1 1 4 . . . . . 1 Slashing Weapon . | . . . . . . . . . . . . . . . Piercing Weapon . | . . . . . . . . . . . . . . . Special Melee Weapon 1 | . 1 . . . . . . . . . . . . . Unidentified Prototypes 8 | . . 1 2 . . . . 3 . . . 2 . . Parts Lost 58 | . 3 8 3 . . 4 4 18 . . . . . 18 Power 8 | . . 1 2 . . 1 . 1 . . . . . 3 Propulsion 32 | . 1 4 . . . 2 3 11 . . . . . 11 Utility 10 | . 1 1 . . . . . 4 . . . . . 4 Weapon 8 | . 1 2 1 . . 1 1 2 . . . . . . Highest Loss Streak 8 | . 3 3 1 . . 3 1 5 . . . . . 8 To Critical Strikes . | . . . . . . . . . . . . . . . Average Slot Usage (%) 86 | . 87 91 99 97 100 89 94 87 78 . 83 79 86 55 Engine 5 | . 14 13 10 11 11 2 2 3 . . . . . . Core 2 | . . . . . . . 5 3 7 . 7 6 6 3 Leg 14 | . 9 11 . . . 23 23 22 . . . 10 20 13 Hover 10 | . 18 13 . . . . . 14 23 . 23 20 20 8 Flight 8 | . . . 43 44 44 20 19 . . . . . . . Device 7 | . 2 9 9 11 11 3 8 10 7 . 6 6 6 4 Storage 9 | . 14 13 11 11 11 11 9 7 7 . 7 6 6 3 Processor 3 | . . . . . . . . 7 7 . 7 6 6 7 Hackware 1 | . . . . . . . 7 2 . . . 5 6 3 Protection 3 | . 8 4 1 . . 7 1 1 7 . 7 . . 2 Energy Gun 2 | . 6 4 . . . 1 5 2 6 . 7 3 . . Ballistic Gun 2 | . 4 9 6 . . 1 . . . . . . . . Ballistic Cannon 2 | . 8 6 . . . . . 1 . . . 2 6 4 Launcher 2 | . . . 3 7 11 10 6 . . . . . . . Impact Weapon 5 | . . 1 10 11 11 8 5 6 7 . 7 6 6 2 Naked Turns 1 | . . . . . . . . . . . . . . 1 Heaviest Build 53 | 14 14 15 21 23 13 19 34 46 44 44 44 44 36 53 Greatest Support 66 | 20 20 20 17 17 17 45 66 57 23 23 23 45 45 60 Greatest Overweight (x) 2 | . 1 1 1 1 . . 1 2 1 1 1 1 1 1 Average Overweight (x) . | . . . . . . . . . 1 1 1 . . . Largest Inventory Capacity 15 | . 8 8 8 8 8 8 15 15 15 15 15 15 15 15 Average Capacity 11 | . 8 7 8 8 8 8 11 15 15 15 15 15 15 10 Most Carried 15 | . 8 8 8 8 8 8 9 15 15 15 15 15 14 15 Average Carried 10 | . 7 7 7 7 7 7 8 12 14 15 14 12 14 9 Final Capacity 15 | 8 8 8 8 8 8 8 15 15 15 15 15 15 15 5 Final Carried 15 | 6 8 8 8 8 8 8 9 15 15 15 15 14 14 5 Class Distribution -------------------- 65% | Mutant 10% | Assassin 7% | Sprinter 7% | Scavenger-Mutant 5% | Scavenger-Sprinter Dominant Class ---------------- Mutant | -10/Materials Mutant | -10/Mines Scavenger-Sprinter | -9/Materials Sprinter | -9/Mines Sprinter | -9/Exiles Mutant | -8/Mines Mutant | -8/Materials Mutant | -7/Factory Mutant | -7/Waste Mutant | -7/Factory Mutant | -7/DSF Assassin | -6/Factory Assassin | -6/Waste Mutant | -6/Factory Resources | -11 -10 -10 -9 -9 -9 -8 -8 -7 -7 -7 -7 -6 -6 -6 ----------- Run | Jun Mat Min Mat Min Exi Min Mat Fac Was Fac DSF Fac Was Fac Matter Collected 2841 | 200 222 591 161 31 161 372 115 836 40 . 10 . . 102 Remotely . | . . . . . . . . . . . . . . . Salvage Created 2653 | . 333 413 223 . 81 696 115 706 . . . . . 86 Parts 152 | . 26 20 23 . 2 15 7 51 . . . . . 8 Haulers Intercepted . | . . . . . . . . . . . . . . . Recyclers Shooed . | . . . . . . . . . . . . . . . Parts Field Recycled 17 | . . . 14 3 . . . . . . . . . . Retrieved Matter 130 | . . . 120 10 . . . . . . . . . . Parts Self-Destructed . | . . . . . . . . . . . . . . . Prevented . | . . . . . . . . . . . . . . . Kills | -11 -10 -10 -9 -9 -9 -8 -8 -7 -7 -7 -7 -6 -6 -6 ------- Run | Jun Mat Min Mat Min Exi Min Mat Fac Was Fac DSF Fac Was Fac Combat Hostiles Destroyed 72 | . 13 14 11 . . 17 2 13 . . . . . 2 Melee 5 | . . 2 . . . 2 1 . . . . . . . Guns 27 | . 10 5 1 . . 6 1 4 . . . . . . Cannons 18 | . . 7 . . . . . 9 . . . . . 2 AOE 17 | . 3 . 10 . . 4 . . . . . . . . Classes Destroyed 13 | . 4 2 . . . 4 1 2 . . . . . . Worker 1 | . . . . . . 1 . . . . . . . . Builder 3 | . . . . . . . . 3 . . . . . . Tunneler 2 | . . . . . . 2 . . . . . . . . Recycler 4 | . . 1 1 . . 1 . 1 . . . . . . Operator 3 | . 2 . 1 . . . . . . . . . . . Watcher 7 | . 1 . 3 . . . . 3 . . . . . . Swarmer 30 | . 9 3 10 . . 4 . 4 . . . . . . Grunt 23 | . 4 7 1 . . 10 . . . . . . . 1 Duelist 2 | . . . . . . 2 . . . . . . . . Sentry 5 | . . . . . . . 2 3 . . . . . . Hunter 4 | . . . . . . 1 . 3 . . . . . . Programmer 4 | . . . . . . . . 3 . . . . . 1 Assembled 4 | . . 4 . . . . . . . . . . . . Best Kill Streak 7 | . 5 2 6 . . 7 1 4 . . . . . 1 Combat Bots Only 7 | . 5 2 4 . . 7 1 4 . . . . . 1 Max Kills in Single Turn 4 | . 3 1 4 . . 3 1 3 . . . . . 1 Gunslinging . | . . . . . . . . . . . . . . . Exploded 3 | . 3 . 3 . . 3 . . . . . . . . Melee 1 | . . 1 . . . 1 1 . . . . . . . Uniques/NPCs Destroyed . | . . . . . . . . . . . . . . . Combat | -11 -10 -10 -9 -9 -9 -8 -8 -7 -7 -7 -7 -6 -6 -6 -------- Run | Jun Mat Min Mat Min Exi Min Mat Fac Was Fac DSF Fac Was Fac Damage Taken 7877 | . 311 876 447 . . 788 350 2429 15 . . . . 2661 Core 1671 | . 19 207 82 . . 113 44 336 10 . . . . 860 Absorbed by Shields 4 | . . . . . . . . 4 . . . . . . Redirected to Shielding 211 | . 6 44 34 . . 18 . 10 . . . . . 99 Regen/Repaired (Parts) 101 | . 21 . . . . . . 29 51 . . . . . Core Remaining (%) 60 | 100 . 9 . . . 51 92 . . . 50 . . . Volleys Fired 257 | . 46 57 25 . . 39 8 70 . . . . . 12 Largest 2 | . 2 2 1 . . 1 1 2 . . . . . 2 Hottest 145 | . 75 95 30 . . 55 50 135 . . . . . 145 Shots Fired 315 | . 60 80 25 . . 39 8 78 . . . . 2 23 Gun 173 | . 41 45 19 . . 34 7 26 . . . . . 1 Cannon 130 | . 19 35 . . . . . 52 . . . . 2 22 Launcher 12 | . . . 6 . . 5 1 . . . . . . . Special . | . . . . . . . . . . . . . . . Kinetic 195 | . 33 58 19 . . 16 . 47 . . . . 2 20 Thermal 32 | . . 4 . . . 18 . 8 . . . . . 2 Explosive 12 | . . . 6 . . 5 1 . . . . . . . Electromagnetic 76 | . 27 18 . . . . 7 23 . . . . . 1 Robot Hit Streak 11 | . 6 11 7 . . 5 7 6 . . . . . 4 Robot Miss Streak 12 | . 3 12 4 . . 1 . 5 . . . . 1 2 Penetration Max . | . . . . . . . . . . . . . . . Secondary Targets 1 | . . 1 . . . . . . . . . . . . Max Gunslinging Chain 1 | . . 1 . . . . . . . . . . . . Shots Hit Robots 230 | . 33 58 14 . 4 47 8 52 . . . . . 14 Core Hits 121 | . 16 25 19 . . 18 3 32 . . . . 1 7 Critical Kills 2 | . . . . . . 2 . . . . . . . . Critical Parts Destroyed 10 | . . 1 . . 2 6 . 1 . . . . . . Critical Strikes 21 | . 2 4 . . 2 9 . 4 . . . . . . Burn 2 | . . 1 . . . 1 . . . . . . . . Blast 4 | . . 1 . . . . . 3 . . . . . . Corrupt 3 | . 2 1 . . . . . . . . . . . . Smash 12 | . . 1 . . 2 8 . 1 . . . . . . Melee Attacks 195 | . 1 10 39 . 4 23 5 85 . . . 1 9 18 Impact 195 | . 1 10 39 . 4 23 5 85 . . . 1 9 18 Slashing . | . . . . . . . . . . . . . . . Piercing . | . . . . . . . . . . . . . . . Sneak Attacks 7 | . . 1 . . . 5 . 1 . . . . . . Combat Hostiles . | . . . . . . . . . . . . . . . Follow-up Attacks . | . . . . . . . . . . . . . . . Damage Inflicted 6756 | . 634 894 820 . 353 1832 157 1610 . . . . 29 427 Guns 1775 | . 349 341 171 . . 433 102 354 . . . . . 25 Cannons 1801 | . 185 341 . . . . . 886 . . . . 29 360 Explosions 1378 | . 100 . 551 . . 539 27 161 . . . . . . Melee 1760 | . . 212 98 . 353 860 28 209 . . . . . . Ramming 42 | . . . . . . . . . . . . . . 42 Kinetic 2286 | . 269 489 171 . . 195 . 800 . . . . 29 333 Thermal 580 | . 100 63 . . . 238 27 125 . . . . . 27 Explosive 1090 | . . . 551 . . 539 . . . . . . . . Electromagnetic 998 | . 265 130 . . . . 102 476 . . . . . 25 Impact 1760 | . . 212 98 . 353 860 28 209 . . . . . . Slashing . | . . . . . . . . . . . . . . . Piercing . | . . . . . . . . . . . . . . . Highest Corruption 20 | . . . . . . . . . . . . . 19 20 Average Corruption 16 | . . . . . . . . . . . . . 11 18 Corruption Purged . | . . . . . . . . . . . . . . . Corruption Blocked . | . . . . . . . . . . . . . . . Effects 37 | . . . . . . . . . . . . . 11 26 Message Errors 10 | . . . . . . . . . . . . . 2 8 Matter Fused 11 | . . . . . . . . . . . . . 4 7 Heat Flow Errors 1 | . . . . . . . . . . . . . . 1 Energy Discharges 5 | . . . . . . . . . . . . . 1 4 Parts Rejected 1 | . . . . . . . . . . . . . . 1 Data Loss (minor) 5 | . . . . . . . . . . . . . 2 3 Data Loss (major) 1 | . . . . . . . . . . . . . . 1 Misfires 2 | . . . . . . . . . . . . . 2 . Misdirections 1 | . . . . . . . . . . . . . . 1 Overload Shots . | . . . . . . . . . . . . . . . Overflow Damage 877 | . 32 46 24 . 294 355 1 125 . . . . . . Projectiles 24 | . 17 5 . . . . . 2 . . . . . . Explosions 41 | . 15 . 7 . . 18 1 . . . . . . . Melee 812 | . . 41 17 . 294 337 . 123 . . . . . . Knockbacks 27 | . 3 5 1 . . 4 . 8 . . . . . 6 Impact 6 | . . . 1 . . 4 . 1 . . . . . . Kinetic 20 | . 3 5 . . . . . 7 . . . . . 5 Secondary 1 | . . . . . . . . . . . . . . 1 Self-Inflicted Damage 202 | . . . 32 . . 28 83 43 . . . . . 16 Shots 5 | . . . 1 . . 1 2 1 . . . . . . Rammed 5 | . . . . . . . . . . . . . . 5 Targets Rammed 7 | . . . . . . . . . . . . . . 7 Kicked 2 | . . . . . . . . . . . . . . 2 Crushed . | . . . . . . . . . . . . . . . Highest Temperature 215 | . 93 215 14 . . 201 44 183 . . 3 . . 176 Average Temperature 56 | . 36 65 5 . . 86 23 47 . . 2 . . 65 Received Heat Transfer 2145 | . 96 252 108 . . 360 144 324 . . . . . 861 Siege Activations . | . . . . . . . . . . . . . . . Robots Corrupted 1 | . . . . . . . . 1 . . . . . . Combat Hostiles . | . . . . . . . . . . . . . . . Parts Fried 20 | . . . 3 . 2 7 . 8 . . . . . . Impact Corruptions 33 | . . 1 1 . 8 16 . 7 . . . . . . Robots Melted . | . . . . . . . . . . . . . . . Combat Hostiles . | . . . . . . . . . . . . . . . Parts Melted 1 | . . . . . . 1 . . . . . . . . Heat Transferred 1214 | . 150 185 . . . 555 50 224 . . . . . 50 Parts Sabotaged . | . . . . . . . . . . . . . . . Parts Stolen . | . . . . . . . . . . . . . . . Parts Stripped . | . . . . . . . . . . . . . . . Power Chain Reactions 2 | . 1 . . . . . 1 . . . . . . . Missiles Intercepted . | . . . . . . . . . . . . . . . Alert | -11 -10 -10 -9 -9 -9 -8 -8 -7 -7 -7 -7 -6 -6 -6 ------- Run | Jun Mat Min Mat Min Exi Min Mat Fac Was Fac DSF Fac Was Fac Peak Influence 507 | . 348 158 507 197 . 273 108 497 117 81 392 284 101 410 Initial 205 | . . 93 15 197 . . 35 2 113 81 56 205 99 1 Average 162 | . 212 73 245 197 . 144 51 221 113 81 273 242 48 103 Maximum Alert Level 2 | . 1 . 2 . . 1 . 2 . . 1 1 . 2 Low Security (%) 63 | . 37 100 31 100 . 71 100 41 100 100 38 . 100 74 Level 1 33 | . 62 . 60 . . 28 . 51 . . 61 100 . 24 Level 2 2 | . . . 7 . . . . 6 . . . . . . Level 3 . | . . . . . . . . . . . . . . . Level 4 . | . . . . . . . . . . . . . . . Level 5 . | . . . . . . . . . . . . . . . High Security . | . . . . . . . . . . . . . . . Max Security . | . . . . . . . . . . . . . . . Sterilizations 1 | . . . . . . . . . . . 1 . . . Squads Dispatched 24 | . 2 . 3 . . . 3 8 . . 1 . . 7 Investigation 6 | . . . 1 . . . 1 2 . . . . . 2 Extermination 5 | . . . . . . . . 3 . . . . . 2 Reinforcement 13 | . 2 . 2 . . . 2 3 . . 1 . . 3 Assault . | . . . . . . . . . . . . . . . Garrison . | . . . . . . . . . . . . . . . Intercept . | . . . . . . . . . . . . . . . Searches Triggered 1 | . . . . . . . . 1 . . . . . . Construction Impeded 1 | . . . . . . . . 1 . . . . . . Haulers Reinforced . | . . . . . . . . . . . . . . . Active Scanning Responses 1 | . . . . . . . . . . . . . . 1 Cargo Convoy Interrupts . | . . . . . . . . . . . . . . . Stealth | -11 -10 -10 -9 -9 -9 -8 -8 -7 -7 -7 -7 -6 -6 -6 --------- Run | Jun Mat Min Mat Min Exi Min Mat Fac Was Fac DSF Fac Was Fac Distress Signals 13 | . 2 2 2 . . . 1 5 . . . . . 1 Communications Jammed . | . . . . . . . . . . . . . . . Distress Signals . | . . . . . . . . . . . . . . . Times Spotted 199 | . 23 20 37 . . 16 14 40 . . 4 1 6 38 Peak Tracking Total 10 | . 4 4 10 . . 4 10 5 . . 4 1 3 7 Tactical Retreats 40 | . 2 4 10 . . . 1 8 . . . . 2 13 Traps | -11 -10 -10 -9 -9 -9 -8 -8 -7 -7 -7 -7 -6 -6 -6 ------- Run | Jun Mat Min Mat Min Exi Min Mat Fac Was Fac DSF Fac Was Fac Traps Triggered 11 | . . . 1 . . . . 7 . . 1 1 . 1 Indirectly . | . . . . . . . . . . . . . . . Trap Hack Attempts . | . . . . . . . . . . . . . . . Triggered . | . . . . . . . . . . . . . . . Disarmed . | . . . . . . . . . . . . . . . Reprogrammed . | . . . . . . . . . . . . . . . Reused . | . . . . . . . . . . . . . . . Traps Extracted . | . . . . . . . . . . . . . . . Installed . | . . . . . . . . . . . . . . . Triggered . | . . . . . . . . . . . . . . . Machines | -11 -10 -10 -9 -9 -9 -8 -8 -7 -7 -7 -7 -6 -6 -6 ---------- Run | Jun Mat Min Mat Min Exi Min Mat Fac Was Fac DSF Fac Was Fac Machines Disabled 8 | . . . 1 . . . 1 4 . . 1 . . 1 Max in Single Turn 1 | . . . 1 . . . 1 1 . . . . . 1 Machines Repaired . | . . . . . . . . . . . . . . . Machines Sabotaged . | . . . . . . . . . . . . . . . Overloaded Fab Kills . | . . . . . . . . . . . . . . . Hacking | -11 -10 -10 -9 -9 -9 -8 -8 -7 -7 -7 -7 -6 -6 -6 --------- Run | Jun Mat Min Mat Min Exi Min Mat Fac Was Fac DSF Fac Was Fac Machines Accessed 47 | . 9 . 6 . . . 6 16 . 1 . 2 . 7 Terminals 29 | . 6 . 5 . . . 3 7 . 1 . 2 . 5 Fabricators 4 | . . . . . . . . 3 . . . . . 1 Repair Stations 3 | . 1 . . . . . . 1 . . . . . 1 Recycling Units 6 | . 2 . . . . . 1 3 . . . . . . Scanalyzers 3 | . . . 1 . . . 1 1 . . . . . . Garrison Access 2 | . . . . . . . 1 1 . . . . . . Total Hacks 122 | . 25 . 19 . . . 20 40 . 1 . 3 . 14 Successful 64 | . 15 . 11 . . . 15 20 . 1 . 1 . 1 Failed 58 | . 10 . 8 . . . 5 20 . . . 2 . 13 Catastrophic 14 | . 2 . 2 . . . . 4 . . . . . 6 Database Lockouts . | . . . . . . . . . . . . . . . Manual 62 | . 19 . 14 . . . 6 17 . . . . . 6 Terminals 76 | . 18 . 17 . . . 7 20 . 1 . 3 . 10 Fabricators 8 | . . . . . . . . 6 . . . . . 2 Repair Stations 6 | . 2 . . . . . . 2 . . . . . 2 Recycling Units 15 | . 5 . . . . . 5 5 . . . . . . Scanalyzers 13 | . . . 2 . . . 5 6 . . . . . . Garrison Access 4 | . . . . . . . 3 1 . . . . . . Terminal Hacks 24 | . 6 . 7 . . . 5 4 . 1 . 1 . . Part Schematic 5 | . 2 . 3 . . . . . . . . . . . Prototype ID Bank 4 | . 3 . 1 . . . . . . . . . . . Open DSF 2 | . . . . . . . . . . 1 . 1 . . Level Access Points 1 | . . . . . . . 1 . . . . . . . Branch Access Points 4 | . 1 . 1 . . . 1 1 . . . . . . Terminal Index 1 | . . . . . . . 1 . . . . . . . Alert Level 1 | . . . 1 . . . . . . . . . . . Unreport Threat 3 | . . . 1 . . . 1 1 . . . . . . Locate Traps 2 | . . . . . . . . 2 . . . . . . Recall Investigation 1 | . . . . . . . 1 . . . . . . . Fabricator Hacks 5 | . . . . . . . . 4 . . . . . 1 Load Schematic 2 | . . . . . . . . 2 . . . . . . Build 3 | . . . . . . . . 2 . . . . . 1 Repair Station Hacks 4 | . 2 . . . . . . 2 . . . . . . Scan Component 2 | . 1 . . . . . . 1 . . . . . . Repair 2 | . 1 . . . . . . 1 . . . . . . Recycling Unit Hacks 6 | . 2 . . . . . 2 2 . . . . . . Retrieve Matter 3 | . . . . . . . 1 2 . . . . . . Retrieve Components 3 | . 2 . . . . . 1 . . . . . . . Scanalyzer 11 | . . . 2 . . . 5 4 . . . . . . Insert Component 5 | . . . 1 . . . 2 2 . . . . . . Analyze 6 | . . . 1 . . . 3 2 . . . . . . Garrison Access Hacks 1 | . . . . . . . 1 . . . . . . . Coupler Status 1 | . . . . . . . 1 . . . . . . . Unauthorized Hacks 13 | . 5 . 2 . . . 2 4 . . . . . . Terminals 10 | . 3 . 2 . . . 1 4 . . . . . . Botnet 10 | . 3 . 2 . . . 1 4 . . . . . . Fabricators . | . . . . . . . . . . . . . . . Repair Stations . | . . . . . . . . . . . . . . . Recycling Units 3 | . 2 . . . . . 1 . . . . . . . Reject 3 | . 2 . . . . . 1 . . . . . . . Scanalyzers . | . . . . . . . . . . . . . . . Garrison Access . | . . . . . . . . . . . . . . . Data Cores Recovered . | . . . . . . . . . . . . . . . Used . | . . . . . . . . . . . . . . . Hacking Detections 40 | . 6 . 6 . . . 5 15 . . . 1 . 7 Full Trace Events 4 | . . . . . . . 1 2 . . . . . 1 Feedback Events . | . . . . . . . . . . . . . . . Feedback Blocked . | . . . . . . . . . . . . . . . Robot Schematics Acquired . | . . . . . . . . . . . . . . . Robots Built . | . . . . . . . . . . . . . . . Authchips . | . . . . . . . . . . . . . . . Time . | . . . . . . . . . . . . . . . Total Robot Build Rating . | . . . . . . . . . . . . . . . Part Schematics Acquired 10 | . 2 . 4 . . . 2 2 . . . . . . Parts Built 5 | . . . . . . . . 3 . . . . . 2 Authchips . | . . . . . . . . . . . . . . . Time 243 | . . . . . . . . 115 . . . . . 128 Total Part Build Rating 26 | . . . . . . . . 10 . . . . . 16 Parts Repaired 2 | . 1 . . . . . . 1 . . . . . . Time 58 | . 26 . . . . . . 32 . . . . . . Parts Recycled . | . . . . . . . . . . . . . . . Recycled Matter . | . . . . . . . . . . . . . . . Retrieved Matter . | . . . . . . . . . . . . . . . Retrieved Components 15 | . 12 . . . . . 3 . . . . . . . Parts Scanalyzed 5 | . . . 1 . . . 2 2 . . . . . . Part Schematics Acquired 5 | . . . 1 . . . 2 2 . . . . . . Parts Damaged 1 | . . . . . . . 1 . . . . . . . Bothacking | -11 -10 -10 -9 -9 -9 -8 -8 -7 -7 -7 -7 -6 -6 -6 ------------ Run | Jun Mat Min Mat Min Exi Min Mat Fac Was Fac DSF Fac Was Fac Used RIF Installer . | . . . . . . . . . . . . . . . Robots Hacked . | . . . . . . . . . . . . . . . Non-combat . | . . . . . . . . . . . . . . . Combat . | . . . . . . . . . . . . . . . Robot Hacks Applied . | . . . . . . . . . . . . . . . Relay Couplers Released . | . . . . . . . . . . . . . . . Fabnet Peak Effective % . | . . . . . . . . . . . . . . . Robots Rewired . | . . . . . . . . . . . . . . . Allies Hacked 1 | . . . . . . . . . . . . 1 . . Hacks Repelled . | . . . . . . . . . . . . . . . Allies | -11 -10 -10 -9 -9 -9 -8 -8 -7 -7 -7 -7 -6 -6 -6 -------- Run | Jun Mat Min Mat Min Exi Min Mat Fac Was Fac DSF Fac Was Fac Total Allies 21 | . . . . 1 . . . . 20 . . . . . Largest Group 20 | . . . . 1 1 . . . 20 18 18 12 3 . Highest-Rated Group 484 | . . . . 31 31 . . . 484 455 455 354 82 . Highest-Rated Ally 35 | . . . . 31 31 . . . 35 35 35 35 35 . Total Orders . | . . . . . . . . . . . . . . . Ally Attacks 100 | . . . . . 5 . . . 3 . 38 4 50 . Total Damage 2310 | . . . . . 64 . . . 283 . 803 58 1102 . Kills 18 | . . . . . 2 . . . 3 . 11 1 1 . Allies Corrupted . | . . . . . . . . . . . . . . . Allies Melted . | . . . . . . . . . . . . . . . Intel | -11 -10 -10 -9 -9 -9 -8 -8 -7 -7 -7 -7 -6 -6 -6 ------- Run | Jun Mat Min Mat Min Exi Min Mat Fac Was Fac DSF Fac Was Fac Robot Analysis Total . | . . . . . . . . . . . . . . . Derelict Logs Recovered 2 | . . 1 . 1 . . . . . . . . . . Drone Launches . | . . . . . . . . . . . . . . . Drone Recoveries . | . . . . . . . . . . . . . . . Exploration | -11 -10 -10 -9 -9 -9 -8 -8 -7 -7 -7 -7 -6 -6 -6 ------------- Run | Jun Mat Min Mat Min Exi Min Mat Fac Was Fac DSF Fac Was Fac Turns Passed 9776 | . 689 1464 773 254 201 1021 583 2833 374 3 258 189 281 853 Spaces Moved 8522 | 1 671 1142 1068 563 522 741 407 1846 300 3 175 131 126 826 Core 356 | . . . . . . . . . . . . . . 356 Treads 88 | . . 88 . . . . . . . . . . . . Legs 2698 | 1 135 385 . . . 529 363 974 . . . 76 10 225 Wheels . | . . . . . . . . . . . . . . . Hover 2971 | . 536 669 . . . . . 872 300 3 175 55 116 245 Flight 2409 | . . . 1068 563 522 212 44 . . . . . . . Fastest Speed 26 | 120 56 56 31 31 31 31 26 48 112 132 132 120 120 50 Average Speed 79 | 120 69 85 34 31 31 94 114 103 118 132 132 125 140 77 Slowest Speed 260 | 120 120 160 111 108 31 120 190 260 132 132 132 132 142 190 Overloaded Moves . | . . . . . . . . . . . . . . . Propulsion Burnouts . | . . . . . . . . . . . . . . . Robots Hopped 8 | . . . 1 1 2 . . . . . . 4 . . Cave-ins Triggered . | . . . . . . . . . . . . . . . Exploration Rate (%) 68 | 2 99 100 75 98 89 93 37 49 95 . 95 3 93 26 Regions Visited 14 Branch Regions 4 Pre-discovered Areas 1 | . . 1 . . . . . . . . . . . . Known Exits Taken 4 | . 1 . 1 . . . 1 . . 1 . . . . Unknown Exits Taken 5 | 1 . 1 . 1 1 1 . . . . . . . . Scrap Searched 3 | . . 1 . 1 . 1 . . . . . . . . Spaces Dug 153 | . 1 . 36 . . . 13 75 . . . 1 9 18 Terrain Destroyed 254 | . 3 . 78 . . 45 17 80 . . . 1 10 20 Melee 136 | . 1 . 28 . . . 4 75 . . . 1 9 18 Projectile 8 | . . . . . . . . 5 . . . . 1 2 AOE 110 | . 2 . 50 . . 45 13 . . . . . . . Terrain Rammed . | . . . . . . . . . . . . . . . Walls Destroyed . | . . . . . . . . . . . . . . . Machines Disabled . | . . . . . . . . . . . . . . . Actions | -11 -10 -10 -9 -9 -9 -8 -8 -7 -7 -7 -7 -6 -6 -6 --------- Run | Jun Mat Min Mat Min Exi Min Mat Fac Was Fac DSF Fac Was Fac Total 10804 | . 838 1533 1378 636 551 974 507 2519 324 2 203 152 212 975 Wait 1299 | . 58 246 173 67 24 127 40 383 6 . 22 6 78 69 Move 8496 | . 670 1141 1065 560 517 740 406 1846 299 2 174 125 125 826 Hop 6 | . . . 1 1 2 . . . . . . 2 . . Pick Up 147 | . 17 23 17 1 1 11 11 38 4 . 3 6 . 15 Fast Attach 35 | . 3 3 5 2 . 2 6 10 1 . 1 . . 2 Attach 80 | . 8 13 6 . . 6 6 23 1 . . 6 . 11 Detach 23 | . 6 4 2 . . . 2 5 . . . 1 . 3 Swap 117 | . 12 19 22 3 1 17 10 23 1 . . 2 . 7 Drop 129 | . 17 17 23 2 2 9 13 23 12 . 3 3 . 5 Fire 257 | . 46 57 25 . . 39 8 70 . . . . . 12 Melee 195 | . 1 10 39 . 4 23 5 85 . . . 1 9 18 Ram 5 | . . . . . . . . . . . . . . 5 Kick 2 | . . . . . . . . . . . . . . 2 Crush . | . . . . . . . . . . . . . . . Escape Stasis 13 | . . . . . . . . 13 . . . . . . Rewire . | . . . . . . . . . . . . . . . Trap . | . . . . . . . . . . . . . . . Miscellaneous . | . . . . . . . . . . . . . . . Route ------- -11/Junkyard -10/Materials (discovered 4 exits: *Mat x3 / *Min) -10/Mines (discovered 2 exits: *Mat x2) -9/Materials (discovered 5 exits: *Mat x3 / *Min / Sto) -9/Mines (discovered 3 exits: *Mat x2 / [*Exi]) -9/Exiles (discovered 2 exits: [*Min x2]) -8/Mines (discovered 2 exits: *Mat x2) -8/Materials (discovered 3 exits: *Fac x3) -7/Factory (discovered 3 exits: *Fac / Low x2) -7/Waste -7/Factory -7/DSF -6/Factory -6/Waste -6/Factory History --------- Turn | Location | Event 1 | -11/Junkyard | Discovered new exit (range 0) 1 | -11/Junkyard | Entered Materials 176 | -10/Materials | Identified exit to Mines 250 | -10/Materials | Lost 3 parts (1n1u1w) 313 | -10/Materials | Discovered new exit (range 16) 316 | -10/Materials | Build established: Mutant 454 | -10/Materials | Repaired Hover Unit 516 | -10/Materials | Discovered new exit (range 14) 580 | -10/Materials | Discovered new exit (range 11) 690 | -10/Materials | Entered Mines 691 | -10/Mines | Assembled infested the area 1087 | -10/Mines | Discovered new exit (range 10) 1090 | -10/Mines | Lost 3 parts (2n1w) 1186 | -10/Mines | Found a damaged Exp. Sensor Array with a note attached 1188 | -10/Mines | Found Prototype Device 1188 | -10/Mines | Identified Exp. Sensor Array 1393 | -10/Mines | Learned location of Zion (-6) 1418 | -10/Mines | Core integrity fell below 50% 1842 | -10/Mines | Build established: Scavenger-Mutant 1842 | -10/Mines | Discovered new exit (range 13) 1964 | -10/Mines | Core integrity fell below 20% 2154 | -10/Mines | Entered Materials 2154 | -9/Materials | Evolved 2 slots: Propulsion x2 2186 | -9/Materials | Identified exit to Mines 2186 | -9/Materials | Identified exit to Storage 2346 | -9/Materials | Discovered new exit (range 9) 2470 | -9/Materials | Build established: Scavenger-Sprinter 2552 | -9/Materials | Discovered new exit (range 6) 2855 | -9/Materials | Discovered new exit (range 11) 2927 | -9/Materials | Entered Mines 2995 | -9/Mines | Deemed a non-threat by the Exiles lab entrance 2995 | -9/Mines | Discovered new exit (range 5) 3046 | -9/Mines | Discovered new exit (range 8) 3049 | -9/Mines | Learned Materials garrison access intel 3059 | -9/Mines | Received a Mining Laser from a helpful Derelict 3093 | -9/Mines | Build established: Sprinter 3113 | -9/Mines | Discovered new exit (range 3) 3181 | -9/Mines | Entered Exiles 3181 | -9/Exiles | Found Exiles lab destroyed 3181 | -9/Exiles | Accompanied by 1 ally 3197 | -9/Exiles | Discovered new exit (range 14) 3378 | -9/Exiles | Discovered new exit (range 14) 3382 | -9/Exiles | Entered Mines 3507 | -8/Mines | Destroyed 7 combat bots 3630 | -8/Mines | Discovered new exit (range 10) 3641 | -8/Mines | Lost 3 parts (1p1n1w) 3893 | -8/Mines | Discovered new exit (range 11) 3902 | -8/Mines | Build established: Mutant 4403 | -8/Mines | Entered Materials 4403 | -8/Materials | Evolved 2 slots: Propulsion x1, Utility x1 4404 | -8/Materials | Loaded intel: 1 garrison access location 4783 | -8/Materials | Discovered new exit (range 5) 4893 | -8/Materials | Identified exit to Factory 4986 | -8/Materials | Entered Factory 4986 | -7/Factory | Evolved 2 slots: Propulsion x1, Utility x1 5265 | -7/Factory | Fabricated Mni. Grenade Launcher? 6263 | -7/Factory | Identified exit to Lower Caves 6759 | -7/Factory | Lost 5 parts (3n2u) 7135 | -7/Factory | Repaired Imp. Hover Unit 7294 | -7/Factory | Lost 5 parts (4n1u) 7568 | -7/Factory | Fabricated Powered Armor? 7663 | -7/Factory | Discovered new exit (range 14) 7716 | -7/Factory | Lost 3 parts (1p2n) 7786 | -7/Factory | Search patrols dispatched 7819 | -7/Factory | Sucked down chute 7819 | -7/Factory | Entered Waste 7820 | -7/Waste | Joined by Warlord forces that had cleared the area 8060 | -7/Waste | Found Damper Plating 8062 | -7/Waste | Found Damper Plating 8075 | -7/Waste | Discovered new exit (range 15) 8140 | -7/Waste | A Compactor rumbled back to life 8140 | -7/Waste | Allies destroyed C-40 Crusher 8193 | -7/Waste | Entered Factory 8193 | -7/Factory | Accompanied by 18 allies 8196 | -7/Factory | Identified exit to DSF 8196 | -7/Factory | Entered DSF 8196 | -7/DSF | Accompanied by 18 allies 8233 | -7/DSF | Additional patrols routed to DSF 8253 | -7/DSF | Discovered new exit (range 12) 8375 | -7/DSF | Found Prototype Device 8401 | -7/DSF | Sterilization system engaged 8421 | -7/DSF | Ambient heat levels rising (+10) 8436 | -7/DSF | Ambient heat levels rising (+10) 8451 | -7/DSF | Ambient heat levels rising (+10) 8454 | -7/DSF | Entered Factory 8454 | -6/Factory | Accompanied by 12 allies 8454 | -6/Factory | Evolved 2 slots: Utility x2 8460 | -6/Factory | Identified Active Sensor Suite 8643 | -6/Factory | Sucked down chute 8643 | -6/Factory | Entered Waste 8658 | -6/Waste | EMP discharged 8709 | -6/Waste | Spotted C-40 Crusher 8721 | -6/Waste | Spotted C-40 Crusher 8758 | -6/Waste | EMP discharged 8758 | -6/Waste | System corruption reached 10% 8769 | -6/Waste | Build established: Assassin 8775 | -6/Waste | Spotted C-40 Crusher 8858 | -6/Waste | EMP discharged 8878 | -6/Waste | Spotted C-40 Crusher 8880 | -6/Waste | Spotted C-40 Crusher 8890 | -6/Waste | 12 allies followed down the chute 8902 | -6/Waste | Discovered new exit (range 16) 8922 | -6/Waste | Identified exit to Factory 8924 | -6/Waste | Entered Factory 9041 | -6/Factory | Lost 3 parts (3n) 9302 | -6/Factory | Fabricated Adv. Corruption Screen? 9445 | -6/Factory | Lost 8 parts (2p4n2u) 9475 | -6/Factory | Core integrity fell below 50% 9663 | -6/Factory | Build established: Mutant 9672 | -6/Factory | Core integrity fell below 20% 9763 | -6/Factory | Spotted B-75 Beast 9777 | -6/Factory | Destroyed by B-75 Beast with Heavy Machine Gun Last Messages --------------- 09615_ Connecting with Terminal... 09648_ Drone sends a signal. 09670_ K-01 Serf cleans the Neutrino Reactor. 09674_ ALERT: Rogue bot located, Programmers report to Factory Zone 5E. 09743_ U-05 Engineer destroyed. 09744_ K-01 Serf collects debris. 09749_ Slammed into K-01 Serf. 09750_ W-25 Informer destroyed. 09750_ R-10 Processor collects Structural Scanner. 09752_ K-01 Serf collects debris. 09753_ Slammed into K-01 Serf. 09753_ R-10 Processor collects Wheel. 09756_ Connecting with Terminal... 09757_ Slammed into W-25 Informer. 09758_ K-01 Serf cleans the Power Conduit. 09763_ ALERT: Hostiles spotted, dispatching reinforcements to Terminal F003. 09764_ Phase Shifter destroyed. 09777_ Cmb. Airjet destroyed. Map ----- +----------------------------------------------------+ | ?????????????????????????????????????????????????? | | ?????????????????????????????????????????????????? | | ?????????????????????????????????????????????????? | | ?????????????????????????????????????????????????? | | ?????????????????????????????????????????????????? | | ?????????????????????????????????????????????????? | | ?????????????????????????????????????????????????? | | ?????????????????????????????????????????????????? | | ?????????????????????????????????????????????????? | | ?????????????????????????????????????????????????? | | ?????????????????????????????????????????????????? | | ?????????????????????????????????????????????????? | | ???????????????????????????????? ????????????????? | | ??????????????????????????????? #???????????????? | | ##????????????????????????????? #???????????????? | | ##??????????????????????????? #???????????????? | | ???????????????????????? #???????????????? | | ??????????????????????? #???????????????? | | # ???????????????????????? #???????????????? | | ??????????????H????????????? #???????????????? | | ???????????????????????????? +???????????????? | | ??????????????????????????? #???????????????? | | ??????????????????????????? #???????????????? | | ?????????????????????????? #???????????????? | | ???????################### #???????????????? | | ######## !!%@ #???????????????? | | !] #???????????????? | | """"" p !! #???????????????? | | ""T"" """ !! #???????????????? | | o """ w!! #???????????????? | | """ #???????????????? | | ######## % u BB ###?????????????? | | ???????#### = BB #?????????????? | | ??????????# #?????????????? | | ####??????# ###?????????????? | | ??????########## ####; #???????????????? | | ????????????????# #???# #???????????????? | | ??????????########/##### #???????????????? | | ??????????# # #???????????????? | | """ ????????# " " " " " !# ?????????????????? | | """ ????????# " " " " " # ????????????????????? | | """ #??????# " " " " " #???????????????????????? | | "" #??????# " " " " " "#???????????????????????? | | "" #??????# " " " " " "#???????????????????????? | | #??????# " " " " " "#???????????????????????? | | #??????# " " " " " T#???????????????????????? | | #??????# " " " " " "#???????????????????????? | | ######??????# " " " " " "#???????????????????????? | | ????????????# "#???????????????????????? | | ????????????# | #???????????????????????? | +----------------------------------------------------+ Best States ------------- Heat Dissipation 64 Energy Generation 18 Energy Capacity 310 Matter Stores 300 Matter Capacity 300 Sight Range 16 Robot Scan Range 20 Terrain Scan Range 16 Terrain Scan Density 210 Additional Mass Support 9 Corruption Containment 24 Armor Coverage 400 Propulsion Shielding 66 Phase Shifting 5 Evasion (%) 64 Recoil Reduction 1 Matter Filtering 30 Offensive Hacking 10 Defensive Hacking 12 Item Schematics ----------------- Hover Unit | -10/Materials | Hacked Sensor Array | -10/Materials | Hacked Hacking Suite | -9/Materials | Scanalyzed Imp. Hover Unit | -9/Materials | Hacked Hvy. Hammer | -9/Materials | Hacked Mni. Grenade Launcher | -9/Materials | Hacked Imp. Flight Unit | -8/Materials | Scanalyzed Imp. Propulsion Shielding | -8/Materials | Scanalyzed Imp. Signal Interpreter | -7/Factory | Scanalyzed Powered Armor | -7/Factory | Scanalyzed Robot Schematics ------------------ None Fabricated ------------ Mni. Grenade Launcher | x1 | -7/Factory Powered Armor | x2 | -7/Factory | Preloaded Adv. Corruption Screen | x2 | -6/Factory | Preloaded Alien Tech Used ----------------- None Achievements -------------- Close Call Cya! Omniscient Cartographer Challenges ------------ None Game ------ Seed HelicalSingularityCalibrator Manual? 0 Play Time 04:08:19 Cumulative 147.0 hours Start 2023.06.05 @ 01:46:35 End 2023.06.06 @ 03:41:57 Sessions 5 Manual Loads 0 Difficulty Rogue Special Mode None Game No. 25 Rogue 23 Adventurer 0 Explorer 2 Win Type - Total 3 Types 0/0/0/3/0/0/0/0/0 Lore% 33 Gallery% 47 Achievement% 48 Wizard Run 0 Options --------- ASCII 1 Keyboard 0 Movement Mouse Keybinds 0 Fullscreen 1 Font 18/SmallcapsGlow Map View 70x50 Tactical HUD 1 Map Filters NONE Filters NONE Steam X RUN: b8654184-fcc5-443f-b731-6b6ebcef6411